Cogmind - Beta 10.2 @@@ ROGUE MODE // 2021.01.27 @ 19:12:29 Player: Databurk Result: Destroyed by G-47 Trooper with Particle Gun Performance ------------- Evolutions (0) 0 Regions Visited (2) 400 Robots Destroyed (11) 55 Value Destroyed (243) 243 Prototype IDs (0) 0 Alien Tech Used (0) 0 Bonus (0) 0 TOTAL SCORE: 698 Bonus ------- None Cogmind --------- Core Integrity 0/250 Matter 275/300 Energy 160/160 System Corruption 0% Temperature Cool (9) Movement Treading (160) Location -10/Mines Parts ------- > --- POWER (1) -------- Light Nuclear Core > --- PROPULSION (2) --- Light Treads Light Treads > --- UTILITY (2) ------ Heat Sink Small Storage Unit > --- WEAPON (2) ------- Light Assault Rifle > --- INVENTORY (6) ---- Ion Engine Ion Engine Light Ion Engine Aluminum Leg Particle Gun Peak State ------------ > --- POWER ------------ Light Nuclear Core > --- PROPULSION ------- Light Treads Light Treads > --- UTILITY ---------- Heat Sink Small Storage Unit > --- WEAPON ----------- Small Laser Light Assault Rifle > --- INVENTORY -------- Ion Engine Ion Engine Light Ion Engine Aluminum Leg Particle Gun [Rating: 9] Favorites ----------- Power Light Ion Engine Engine Light Ion Engine Power Core Light Nuclear Core Propulsion Light Treads Treads Light Treads Leg Aluminum Leg Wheel Wheel Utility Small Storage Unit Device Heat Sink Storage Small Storage Unit Weapon Light Assault Rifle Energy Gun EM Pulse Gun Ballistic Gun Light Assault Rifle Build | -11 -10 -10 ------- Run | Scr Mat Min Slots Evolved . | . . . Power . | . . . Propulsion . | . . . Utility . | . . . Weapon . | . . . Parts Attached 19 | 9 8 2 Power 3 | 1 1 1 Engine 2 | 1 1 . Core 1 | . . 1 Reactor . | . . . Propulsion 6 | 4 2 . Treads 3 | 1 2 . Leg 2 | 2 . . Wheel 1 | 1 . . Hover . | . . . Flight . | . . . Utility 2 | 1 1 . Device 1 | . 1 . Storage 1 | 1 . . Processor . | . . . Hackware . | . . . Protection . | . . . Artifact . | . . . Weapon 8 | 3 4 1 Energy Gun 3 | 2 . 1 Energy Cannon . | . . . Ballistic Gun 5 | 1 4 . Ballistic Cannon . | . . . Launcher . | . . . Special Weapon . | . . . Impact Weapon . | . . . Slashing Weapon . | . . . Piercing Weapon . | . . . Special Melee Weapon . | . . . Unidentified Prototypes . | . . . Parts Lost 9 | . 7 2 Power 1 | . 1 . Propulsion 2 | . 2 . Utility . | . . . Weapon 6 | . 4 2 Highest Loss Streak 7 | . 7 1 Average Slot Usage (%) 85 | . 78 96 Engine 8 | . 13 2 Core 4 | . . 11 Treads 18 | . 12 28 Leg 5 | . 10 . Device 9 | . 6 14 Storage 14 | . 14 14 Energy Gun 9 | . 9 9 Ballistic Gun 14 | . 13 14 Naked Turns . | . . . Heaviest Build 12 | 11 12 12 Greatest Support 40 | 20 40 40 Greatest Overweight (x) 3 | . 3 . Average Overweight (x) . | . . . Largest Inventory Capacity 6 | 6 6 6 Average Capacity 5 | 5 6 6 Most Carried 6 | 6 6 6 Average Carried 4 | 3 3 4 Final Capacity 6 | 6 6 6 Final Carried 5 | 5 3 5 Class Distribution -------------------- 57% | Mutant 42% | Scavenger-Mutant Dominant Class ---------------- Mutant | -10/Materials Scavenger-Mutant | -10/Mines Resources | -11 -10 -10 ----------- Run | Scr Mat Min Matter Collected 383 | 181 178 24 Remotely . | . . . Salvage Created 325 | . 199 126 Parts 26 | . 21 5 Haulers Intercepted . | . . . Recyclers Shooed 1 | . 1 . Parts Field Recycled . | . . . Retrieved Matter . | . . . Parts Self-Destructed . | . . . Prevented . | . . . Kills | -11 -10 -10 ------- Run | Scr Mat Min Combat Hostiles Destroyed 11 | . 8 3 Guns 11 | . 8 3 Classes Destroyed 2 | . 2 . Swarmer 6 | . 6 . Grunt 5 | . 2 3 Best Kill Streak 3 | . 3 2 Combat Bots Only 3 | . 3 2 Max Kills in Single Turn 1 | . 1 1 Gunslinging . | . . . Exploded . | . . . Melee . | . . . Uniques/NPCs Destroyed . | . . . Combat | -11 -10 -10 -------- Run | Scr Mat Min Damage Taken 1213 | . 885 328 Core 250 | . 223 27 Absorbed by Shields . | . . . Core Remaining (%) 100 | 100 . . Volleys Fired 71 | 1 48 22 Largest 2 | 2 2 2 Hottest 80 | 60 80 60 Shots Fired 103 | 2 73 28 Gun 103 | 2 73 28 Cannon . | . . . Launcher . | . . . Special . | . . . Kinetic 63 | 1 37 25 Thermal 3 | . . 3 Explosive . | . . . Electromagnetic 37 | 1 36 . Robot Hit Streak 9 | . 9 7 Robot Miss Streak 3 | . 3 2 Penetration Max . | . . . Secondary Targets 3 | . 3 . Max Gunslinging Chain 1 | . 1 . Shots Hit Robots 63 | . 41 22 Core Hits 22 | . 10 12 Critical Hits . | . . . Critical Kills . | . . . Critical Parts Destroyed . | . . . Melee Attacks . | . . . Impact . | . . . Slashing . | . . . Piercing . | . . . Sneak Attacks . | . . . Combat Hostiles . | . . . Follow-up Attacks . | . . . Damage Inflicted 515 | . 326 189 Guns 515 | . 326 189 Cannons . | . . . Explosions . | . . . Melee . | . . . Ramming . | . . . Kinetic 248 | . 92 156 Thermal 33 | . . 33 Explosive . | . . . Electromagnetic 234 | . 234 . Impact . | . . . Slashing . | . . . Piercing . | . . . Highest Corruption . | . . . Average Corruption . | . . . Corruption Purged . | . . . Overload Shots . | . . . Overflow Damage . | . . . Projectiles . | . . . Explosions . | . . . Melee . | . . . Knockbacks . | . . . Impact . | . . . Kinetic . | . . . Secondary . | . . . Self-Inflicted Damage . | . . . Shots . | . . . Rammed . | . . . Targets Rammed . | . . . Kicked . | . . . Crushed . | . . . Highest Temperature 150 | 20 150 14 Average Temperature 70 | 10 78 6 Received Heat Transfer 342 | . 150 192 Siege Activations . | . . . Robots Corrupted . | . . . Combat Hostiles . | . . . Parts Fried 1 | . 1 . Impact Corruptions . | . . . Robots Melted . | . . . Combat Hostiles . | . . . Parts Melted . | . . . Heat Transferred 75 | . . 75 Parts Sabotaged . | . . . Parts Stolen . | . . . Parts Stripped . | . . . Power Chain Reactions . | . . . Missiles Intercepted . | . . . Alert | -11 -10 -10 ------- Run | Scr Mat Min Peak Influence 170 | . 170 126 Initial 66 | . . 66 Average 95 | . 112 102 Maximum Alert Level . | . . . Low Security (%) 100 | 100 100 100 Level 1 . | . . . Level 2 . | . . . Level 3 . | . . . Level 4 . | . . . Level 5 . | . . . High Security . | . . . Max Security . | . . . Squads Dispatched 2 | . 2 . Investigation . | . . . Extermination . | . . . Reinforcement 2 | . 2 . Assault . | . . . Garrison . | . . . Intercept . | . . . Construction Impeded . | . . . Haulers Reinforced . | . . . Stealth | -11 -10 -10 --------- Run | Scr Mat Min Distress Signals . | . . . Communications Jammed . | . . . Distress Signals . | . . . Times Spotted 21 | . 17 4 Peak Tracking Total 5 | . 5 2 Tactical Retreats 1 | . 1 . Traps | -11 -10 -10 ------- Run | Scr Mat Min Traps Triggered . | . . . Indirectly . | . . . Trap Hack Attempts . | . . . Triggered . | . . . Disarmed . | . . . Reprogrammed . | . . . Reused . | . . . Traps Extracted . | . . . Installed . | . . . Triggered . | . . . Machines | -11 -10 -10 ---------- Run | Scr Mat Min Machines Disabled . | . . . Max in Single Turn . | . . . Machines Sabotaged . | . . . Garrisons Compromised . | . . . Overloaded Fab Kills . | . . . Fab Network Shutdowns . | . . . Hacking | -11 -10 -10 --------- Run | Scr Mat Min Machines Accessed . | . . . Terminals . | . . . Fabricators . | . . . Repair Stations . | . . . Recycling Units . | . . . Scanalyzers . | . . . Garrison Access . | . . . Total Hacks . | . . . Successful . | . . . Failed . | . . . Catastrophic . | . . . Database Lockouts . | . . . Manual . | . . . Terminals . | . . . Fabricators . | . . . Repair Stations . | . . . Recycling Units . | . . . Scanalyzers . | . . . Garrison Access . | . . . Terminal Hacks . | . . . Fabricator Hacks . | . . . Repair Station Hacks . | . . . Recycling Unit Hacks . | . . . Scanalyzer . | . . . Garrison Access Hacks . | . . . Unauthorized Hacks . | . . . Terminals . | . . . Fabricators . | . . . Repair Stations . | . . . Recycling Units . | . . . Scanalyzers . | . . . Garrison Access . | . . . Data Cores Recovered . | . . . Used . | . . . Hacking Detections . | . . . Full Trace Events . | . . . Feedback Events . | . . . Feedback Blocked . | . . . Robot Schematics Acquired . | . . . Robots Built . | . . . Matter . | . . . Time . | . . . Total Robot Build Rating . | . . . Part Schematics Acquired . | . . . Parts Built . | . . . Matter . | . . . Time . | . . . Total Part Build Rating . | . . . Parts Repaired . | . . . Time . | . . . Parts Recycled . | . . . Recycled Matter . | . . . Retrieved Matter . | . . . Retrieved Components . | . . . Parts Scanalyzed . | . . . Part Schematics Acquired . | . . . Parts Damaged . | . . . Bothacking | -11 -10 -10 ------------ Run | Scr Mat Min Used RIF Installer . | . . . Robots Hacked . | . . . Non-combat . | . . . Combat . | . . . Robot Hacks Applied . | . . . Relay Couplers Released . | . . . Robots Rewired . | . . . Allies Hacked . | . . . Hacks Repelled . | . . . Allies | -11 -10 -10 -------- Run | Scr Mat Min Total Allies . | . . . Largest Group . | . . . Highest-Rated Group . | . . . Highest-Rated Ally . | . . . Total Orders . | . . . Ally Attacks . | . . . Total Damage . | . . . Kills . | . . . Allies Corrupted . | . . . Allies Melted . | . . . Intel | -11 -10 -10 ------- Run | Scr Mat Min Robot Analysis Total . | . . . Derelict Logs Recovered . | . . . Drone Launches . | . . . Drone Recoveries . | . . . Exploration | -11 -10 -10 ------------- Run | Scr Mat Min Turns Passed 537 | 66 281 190 Spaces Moved 221 | 47 96 78 Core 24 | 18 6 . Treads 145 | 2 65 78 Legs 47 | 22 25 . Wheels 5 | 5 . . Hover . | . . . Flight . | . . . Fastest Speed 50 | 50 100 160 Average Speed 140 | 90 148 160 Slowest Speed 200 | 160 200 160 Overloaded Moves . | . . . Propulsion Burnouts . | . . . Robots Hopped . | . . . Cave-ins Triggered . | . . . Exploration Rate (%) 13 | 4 17 20 Regions Visited 2 Branch Regions 1 Pre-discovered Areas . | . . . Known Exits Taken . | . . . Unknown Exits Taken 2 | 1 1 . Scrap Searched . | . . . Spaces Dug . | . . . Terrain Destroyed . | . . . Melee . | . . . Projectile . | . . . AOE . | . . . Terrain Rammed . | . . . Walls Destroyed . | . . . Machines Disabled . | . . . Actions | -11 -10 -10 --------- Run | Scr Mat Min Total 354 | 66 169 119 Wait 24 | . 10 14 Move 219 | 46 95 78 Hop . | . . . Pick Up 19 | 9 7 3 Fast Attach 3 | 3 . . Attach 13 | 4 8 1 Detach . | . . . Swap 3 | 2 . 1 Drop 2 | 1 1 . Fire 71 | 1 48 22 Melee . | . . . Ram . | . . . Kick . | . . . Crush . | . . . Escape Stasis . | . . . Rewire . | . . . Trap . | . . . Miscellaneous . | . . . Route ------- -11/Scrapyard -10/Materials -10/Mines History --------- Turn | Location | Event 29 | -11/Scrapyard | Discovered new exit (range 14) 67 | -11/Scrapyard | Entered Materials 178 | -10/Materials | Core integrity fell below 50% 234 | -10/Materials | Lost 7 parts (1p2n4w) 300 | -10/Materials | Discovered new exit (range 16) 340 | -10/Materials | Core integrity fell below 20% 348 | -10/Materials | Entered Mines 538 | -10/Mines | Destroyed by G-47 Trooper with Particle Gun Last Messages --------------- 00324_ K-01 Serf cleans the Machine. 00326_ K-01 Serf collects debris. 00329_ K-01 Serf cleans the Machine. 00330_ K-01 Serf collects debris. 00336_ O-16 Technician: "IFF HANDSHAKE FAILED. SECURING TERMINAL." 00337_ O-16 Technician uses terminal to summon reinforcements. 00337_ ALERT: Hostiles spotted, dispatching reinforcements to Terminal M001. 00337_ O-16 Technician locks terminal. LOCATION=UNKNOWN GOAL=ESCAPE 00354_ Lgt. Assault Rifle destroyed. 00358_ G-34 Mercenary destroyed. 00371_ G-47 Trooper destroyed. 00372_ Acquired 24 matter. 00377_ Acquired Lgt. Nuclear Core. 00380_ Acquired Particle Gun. 00382_ Acquired Aluminum Leg. 00520_ G-34 Mercenary destroyed. 00524_ Sml. Laser destroyed. Map ----- +----------------------------------------------------+ | ????????????????????????????????????????????? | | ????????????????????????????????????????????? | | ????????????????????????????????????????????? | | ????????????????????????????????????????????? | | ????????????????????????????????????????????? | | ????????????????????????????????????????????? | | ????????????????????????????????????????????? | | ????????????????????????????????????????????? | | ????????????????????????????????????????????? | | ????????????????????????????????????????????? | | ????????????????????????????????????????????? | | ????????????????????####????????????????????? | | ???????????????????## ##??????????????????? | | ???????????????????# ###????????????????? | | ?????????????# ???## ##???????????????? | | ?????????????# ### ##??????????????? | | ??????????#### #??##??????????? | | ????????? ## ####???????? | | ???????????? #???????? | | ??????????????? """ #?##???? | | ??????????????? """ #### #??? | | ??????????????? """ ### #?????????? #??? | | ?????????????? ???##g[##?????????# #??? | | ?????????????? #????##= #?????????# #??? | | ?????????????## ?????## #?????????# #??? | | ??????????????###??????# @ #?????????# #??? | | ???????????????????????# #?????????# #??? | | ???????????????????????## ##????????# #??? | | ????????????????????????## ####?????# #??? | | ?????????????????????????## ###???# #??? | | ??????????????????????????# ##### #??? | | ?????????????????????????## #??? | | ????????????????????????## #### #??? | | ???????????????????????## ###t ##??# #??? | | ???????????????????????# ##?####???# #??? | | ???????????????????????# ##????????# #??? | | ???????????????????????# #????????# #??? | | ???????????????????????## #????????# #??? | | ????????????????????????# ##????????# #??? | | ????????????????????????## ##?????????# #??? | | ?????????????????????????###???????????# #??? | | ???????????????????????????????????????# #??? | | ????????????????????????????????####???# #??? | | ???????????????????????????????## #### #??? | | ???????????????????????????????# ## ##?? | | ???????????????????????????????# #?? | | ???????????????????????????????# % #?? | | ???????????????????????????????## % ##?? | | ????????????????????????????????##### ###??? | | ????????????????????????????????????####????? | +----------------------------------------------------+ Best States ------------- Heat Dissipation 35 Energy Generation 14 Energy Capacity 250 Matter Stores 300 Matter Capacity 300 Sight Range 16 Terrain Scan Density 10 Evasion (%) 50 Recoil Reduction 2 Item Schematics ----------------- None Robot Schematics ------------------ None Fabricated ------------ Nothing Alien Tech Used ----------------- None Achievements -------------- None Challenges ------------ None Game ------ Seed MomentumOpticalExpander Manual? 0 Play Time 00:16:56 Cumulative 2.8 hours Start 2021.01.27 @ 18:55:19 End 2021.01.27 @ 19:12:29 Sessions 1 Manual Loads 0 Difficulty Rogue Special Mode None Game No. 6 Rogue 6 Adventurer 0 Explorer 0 Win Type - Total 0 Types 0/0/0/0/0/0/0/0/0 Lore% 1 Gallery% 5 Achievement% 5 Wizard Run 0 Options --------- ASCII 0 Keyboard 0 Movement Mouse Keybinds 0 Fullscreen 1 Font 18/SmallcapsGlow Map View 76x50 Tactical HUD 1 Map Filters NONE Filters NONE Steam 1 RUN: 3277495a-063a-496d-8232-a9f7fdbc1e5a